{"text_format":"1","workbook":"xlsx","n_sheets":1,"sheets":["Errata PCASP SAGRES 2016"],"not_rendered":{"charts":0,"images":0,"macros":0,"external_links":0,"defined_names":1,"comments":0,"pivot_tables":0},"unopened":[],"bounds":{"document_bytes":16777216,"sheet_cells":100000,"rows_first":2000,"rows_last":500,"rows_between":2000,"halvings":0,"cell_chars":16384,"cell_head_chars":4096},"cells_cut":0,"cells_raw":0,"read":"whole","date_system":"1900"}

{"sheet":"Errata PCASP SAGRES 2016","index":0,"n_rows":57,"n_cols":15,"rows_kept":57,"cut":false,"hidden":false,"merged":[[1,7,1,11]]}
[]
[null,null,null,null,null,null,null,"Em conformidade com a publicação de errata pela STN em dez/2015, as contas a seguir ficam excluídas do PCASP SAGRES 2016"]
[]
["CLASSE","GRUPO","SUBGRUPO","TÍTULO","SUBTÍTULO","ÍTEM","SUBÍTEM","CONTA","TÍTULO","FUNÇÃO","NATUREZA DO SALDO","ATRIBUTO SUPERÁVIT FINANCEIRO","ATRIBUTO OBRIG. (conta corrente)","ESCRITURAÇÃO","NÍVEL"]
[{"$f":"MID(H5,1,1)","v":"4"},{"$f":"MID(H5,3,1)","v":"6"},{"$f":"MID(H5,5,1)","v":"5"},{"$f":"MID(H5,7,1)","v":"4"},{"$f":"MID(H5,9,1)","v":"0"},{"$f":"MID(H5,11,2)","v":"00"},{"$f":"MID(H5,14,2)","v":"00"},"4.6.5.4.0.00.00","REVERSÃO DE REDUÇÃO A VALOR RECUPERÁVEL DE INVESTIMENTOS","Compreende a variação patrimonial aumentativa com a reversão de redução a valor recuperável de um investimento.","C",null,null,"N",4]
["4","6","5","4","1","00","00","4.6.5.4.1.00.00","REVERSÃO DE REDUÇÃO A VALOR RECUPERÁVEL DE INVESTIMENTOS - CONSOLIDAÇÃO","Compreende a variação patrimonial aumentativa com a reversão de redução a valor recuperável de um investimento. Compreende os saldos que não serão excluídos nos demonstrativos consolidados do orçamento fiscal e da seguridade social (OFSS).","C",null,null,"N",5]
["4","6","5","4","1","01","00","4.6.5.4.1.01.00","REVERSÃO DE REDUÇÃO A VALOR RECUPERÁVEL DE PARTICIPAÇÕES PERMANENTES","Registra a variação patrimonial aumentativa com a reversão de redução a valor recuperável de participações permanentes em outras entidades.","C",null,null,"S",6]
["4","6","5","4","1","02","00","4.6.5.4.1.02.00","REVERSÃO DE REDUÇÃO A VALOR RECUPERÁVEL DE PROPRIEDADES PARA INVESTIMENTO","Registra a variação patrimonial aumentativa com a reversão de redução a valor recuperável de propriedades para investimento.","C",null,null,"S",6]
["4","6","5","4","1","03","00","4.6.5.4.1.03.00","REVERSÃO DE REDUÇÃO A VALOR RECUPERÁVEL DE INVESTIMENTOS DO RPPS DE \nLONGO PRAZO","Registra a variação patrimonial aumentativa com a reversão de redução a valor recuperável de investimentos do RPPS de longo prazo.","C",null,null,"S",6]
["4","6","5","4","1","04","00","4.6.5.4.1.04.00","REVERSÃO DE REDUÇÃO A VALOR RECUPERÁVEL DE DEMAIS INVESTIMENTOS \nPERMANENTES","Registra a variação patrimonial aumentativa com a reversão de redução a valor recuperável de demais investimentos permanentes.","C",null,null,"S",6]
["4","6","5","4","2","00","00","4.6.5.4.2.00.00","REVERSÃO DE REDUÇÃO A VALOR RECUPERÁVEL DE INVESTIMENTOS - INTRA OFSS","Compreende a variação patrimonial aumentativa com a reversão de redução a valor recuperável de um investimento. Compreende os saldos que serão excluídos nos demonstrativos consolidados do orçamento fiscal e da seguridade social (OFSS) do ente.","C",null,null,"N",5]
["4","6","5","4","2","01","00","4.6.5.4.2.01.00","REVERSÃO DE REDUÇÃO A VALOR RECUPERÁVEL DE PARTICIPAÇÕES PERMANENTES","Registra a variação patrimonial aumentativa com a reversão de redução a valor recuperável de participações permanentes em outras entidades.","C",null,null,"S",6]
["4","6","5","4","2","02","00","4.6.5.4.2.02.00","REVERSÃO DE REDUÇÃO A VALOR RECUPERÁVEL DE PROPRIEDADES PARA INVESTIMENTO","Registra a variação patrimonial aumentativa com a reversão de redução a valor recuperável de propriedades para investimento.","C",null,null,"S",6]
["4","6","5","4","2","03","00","4.6.5.4.2.03.00","REVERSÃO DE REDUÇÃO A VALOR RECUPERÁVEL DE INVESTIMENTOS DO RPPS DE \nLONGO PRAZO","Registra a variação patrimonial aumentativa com a reversão de redução a valor recuperável de investimentos do RPPS de longo prazo.","C",null,null,"S",6]
["4","6","5","4","2","04","00","4.6.5.4.2.04.00","REVERSÃO DE REDUÇÃO A VALOR RECUPERÁVEL DE DEMAIS INVESTIMENTOS \nPERMANENTES","Registra a variação patrimonial aumentativa com a reversão de redução a valor recuperável de demais investimentos permanentes.","C",null,null,"S",6]
["4","6","5","4","3","00","00","4.6.5.4.3.00.00","REVERSÃO DE REDUÇÃO A VALOR RECUPERÁVEL DE INVESTIMENTOS - INTER OFSS - UNIÃO","Compreende a variação patrimonial aumentativa com a reversão de redução a valor recuperável de um investimento. Compreende os saldos que serão excluídos nos demonstrativos consolidados do Orçamento Fiscal e da Seguridade Social (OFSS) de entes públicos distintos, resultantes das transações entre o ente e a União.","C",null,null,"N",5]
["4","6","5","4","3","01","00","4.6.5.4.3.01.00","REVERSÃO DE REDUÇÃO A VALOR RECUPERÁVEL DE PARTICIPAÇÕES PERMANENTES","Registra a variação patrimonial aumentativa com a reversão de redução a valor recuperável de participações permanentes em outras entidades.","C",null,null,"S",6]
["4","6","5","4","3","02","00","4.6.5.4.3.02.00","REVERSÃO DE REDUÇÃO A VALOR RECUPERÁVEL DE PROPRIEDADES PARA INVESTIMENTO","Registra a variação patrimonial aumentativa com a reversão de redução a valor recuperável de propriedades para investimento.","C",null,null,"S",6]
["4","6","5","4","3","03","00","4.6.5.4.3.03.00","REVERSÃO DE REDUÇÃO A VALOR RECUPERÁVEL DE INVESTIMENTOS DO RPPS DE \nLONGO PRAZO","Registra a variação patrimonial aumentativa com a reversão de redução a valor recuperável de investimentos do RPPS de longo prazo.","C",null,null,"S",6]
["4","6","5","4","3","04","00","4.6.5.4.3.04.00","REVERSÃO DE REDUÇÃO A VALOR RECUPERÁVEL DE DEMAIS INVESTIMENTOS \nPERMANENTES","Registra a variação patrimonial aumentativa com a reversão de redução a valor recuperável de demais investimentos permanentes.","C",null,null,"S",6]
["4","6","5","4","4","00","00","4.6.5.4.4.00.00","REVERSÃO DE REDUÇÃO A VALOR RECUPERÁVEL DE INVESTIMENTOS - INTER OFSS - ESTADO","Compreende a variação patrimonial aumentativa com a reversão de redução a valor recuperável de um investimento.Compreende os saldos que serão excluídos nos demonstrativos consolidados do Orçamento Fiscal e da Seguridade Social (OFSS) de entes públicos distintos, resultantes das transações entre o ente e um estado.","C",null,null,"N",5]
["4","6","5","4","4","01","00","4.6.5.4.4.01.00","REVERSÃO DE REDUÇÃO A VALOR RECUPERÁVEL DE PARTICIPAÇÕES PERMANENTES","Registra a variação patrimonial aumentativa com a reversão de redução a valor recuperável de participações permanentes em outras entidades.","C",null,null,"S",6]
["4","6","5","4","4","02","00","4.6.5.4.4.02.00","REVERSÃO DE REDUÇÃO A VALOR RECUPERÁVEL DE PROPRIEDADES PARA INVESTIMENTO","Registra a variação patrimonial aumentativa com a reversão de redução a valor recuperável de propriedades para investimento.","C",null,null,"S",6]
["4","6","5","4","4","03","00","4.6.5.4.4.03.00","REVERSÃO DE REDUÇÃO A VALOR RECUPERÁVEL DE INVESTIMENTOS DO RPPS DE \nLONGO PRAZO","Registra a variação patrimonial aumentativa com a reversão de redução a valor recuperável de investimentos do RPPS de longo prazo.","C",null,null,"S",6]
["4","6","5","4","4","04","00","4.6.5.4.4.04.00","REVERSÃO DE REDUÇÃO A VALOR RECUPERÁVEL DE DEMAIS INVESTIMENTOS \nPERMANENTES","Registra a variação patrimonial aumentativa com a reversão de redução a valor recuperável de demais investimentos permanentes.","C",null,null,"S",6]
["4","6","5","4","5","00","00","4.6.5.4.5.00.00","REVERSÃO DE REDUÇÃO A VALOR RECUPERÁVEL DE INVESTIMENTOS - INTER OFSS - MUNICÍPIO","Compreende a variação patrimonial aumentativa com a reversão de redução a valor recuperável de um investimento. Compreende os saldos que serão excluídos nos demonstrativos consolidados do Orçamento Fiscal e da Seguridade Social (OFSS) de entes públicos distintos, resultantes das transações entre o ente e um município.","C",null,null,"N",5]
["4","6","5","4","5","01","00","4.6.5.4.5.01.00","REVERSÃO DE REDUÇÃO A VALOR RECUPERÁVEL DE PARTICIPAÇÕES PERMANENTES","Registra a variação patrimonial aumentativa com a reversão de redução a valor recuperável de participações permanentes em outras entidades.","C",null,null,"S",6]
["4","6","5","4","5","02","00","4.6.5.4.5.02.00","REVERSÃO DE REDUÇÃO A VALOR RECUPERÁVEL DE PROPRIEDADES PARA INVESTIMENTO","Registra a variação patrimonial aumentativa com a reversão de redução a valor recuperável de propriedades para investimento.","C",null,null,"S",6]
["4","6","5","4","5","03","00","4.6.5.4.5.03.00","REVERSÃO DE REDUÇÃO A VALOR RECUPERÁVEL DE INVESTIMENTOS DO RPPS DE \nLONGO PRAZO","Registra a variação patrimonial aumentativa com a reversão de redução a valor recuperável de investimentos do RPPS de longo prazo.","C",null,null,"S",6]
["4","6","5","4","5","04","00","4.6.5.4.5.04.00","REVERSÃO DE REDUÇÃO A VALOR RECUPERÁVEL DE DEMAIS INVESTIMENTOS \nPERMANENTES","Registra a variação patrimonial aumentativa com a reversão de redução a valor recuperável de demais investimentos permanentes.","C",null,null,"S",6]
["4","6","5","5","0","00","00","4.6.5.5.0.00.00","REVERSÃO DE REDUÇÃO A VALOR RECUPERÁVEL DE IMOBILIZADO","Compreende a variação patrimonial aumentativa com a reversão de redução a valor recuperável de um ativo imobilizado.","C",null,null,"N",4]
["4","6","5","5","1","00","00","4.6.5.5.1.00.00","REVERSÃO DE REDUÇÃO A VALOR RECUPERÁVEL DE IMOBILIZADO - CONSOLIDAÇÃO","Compreende a variação patrimonial aumentativa com a reversão de redução a valor recuperável de um ativo imobilizado. Compreende os saldos que não serão excluídos nos demonstrativos consolidados do orçamento fiscal e da seguridade social (OFSS).","C",null,null,"N",5]
["4","6","5","5","1","01","00","4.6.5.5.1.01.00","REVERSÃO DE REDUÇÃO A VALOR RECUPERÁVEL DE BENS MÓVEIS","Compreende a variação patrimonial aumentativa com a reversão de redução nos benefícios econômicos futuros ou no potencial de serviços de bens móveis, que reflete um declínio na sua utilidade além do reconhecimento sistemático por meio da depreciação.","C",null,null,"N",6]
["4","6","5","5","1","01","01","4.6.5.5.1.01.01","REVERSÃO DE REDUÇÃO A VALOR RECUPERÁVEL DE MÁQUINAS, APARELHOS, EQUIPAMENTOS E FERRAMENTAS","Registra a variação patrimonial aumentativa com a reversão de redução a valor recuperável de máquinas, ferramentas, aparelhos, equipamentos, acessórios etc.","C"," ",null,"S",7]
["4","6","5","5","1","01","02","4.6.5.5.1.01.02","REVERSÃO DE REDUÇÃO A VALOR RECUPERÁVEL DE BENS DE INFORMÁTICA","Registra a variação patrimonial aumentativa com a reversão de redução a valor recuperável de equipamentos de processamento de dados e sistemas aplicativos, entre outros.","C",null,null,"S",7]
["4","6","5","5","1","01","03","4.6.5.5.1.01.03","REVERSÃO DE REDUÇÃO A VALOR RECUPERÁVEL DE MÓVEIS E UTENSÍLIOS","Registra a variação patrimonial aumentativa com a reversão de redução a valor recuperável de mobiliário em geral e utensílios, entre outros.","C",null,null,"S",7]
["4","6","5","5","1","01","04","4.6.5.5.1.01.04","REVERSÃO DE REDUÇÃO A VALOR RECUPERÁVEL DE MATERIAIS CULTURAIS, EDUCACIONAIS E DE COMUNICAÇÃO","Registra a variação patrimonial aumentativa com a reversão de redução a valor recuperável de materiais bibliográficos, discotecas, filmotecas, de comunicação, entre outros.","C",null,null,"S",7]
["4","6","5","5","1","01","05","4.6.5.5.1.01.05","REVERSÃO DE REDUÇÃO A VALOR RECUPERÁVEL DE VEÍCULOS","Registra a variação patrimonial aumentativa com a reversão de redução a valor recuperável de transportes aéreos, aquáticos e terrestres, entre outros.","C",null,null,"S",7]
["4","6","5","5","1","01","06","4.6.5.5.1.01.06","REVERSÃO DE REDUÇÃO A VALOR RECUPERÁVEL DE PEÇAS E CONJUNTOS DE REPOSIÇÃO","Registra a variação patrimonial aumentativa com a reversão de redução a valor recuperável de peças e conjuntos de reposição destinados a substituição em máquinas e equipamentos, aeronaves e embarcações, bens de segurança e socorro, entre outros.","C",null,null,"S",7]
["4","6","5","5","1","01","07","4.6.5.5.1.01.07","REVERSÃO DE REDUÇÃO A VALOR RECUPERÁVEL DE BENS MÓVEIS EM ANDAMENTO","Registra a variação patrimonial aumentativa com a reversão de redução a valor recuperável de bens móveis em andamento.","C",null,null,"S",7]
["4","6","5","5","1","01","08","4.6.5.5.1.01.08","REVERSÃO DE REDUÇÃO A VALOR RECUPERÁVEL DE BENS MÓVEIS EM ALMOXARIFADO","Registra a variação patrimonial aumentativa com a reversão de redução a valor recuperável de bens permanentes a serem estocados em almoxarifado.","C",null,null,"S",7]
["4","6","5","5","1","01","09","4.6.5.5.1.01.09","REVERSÃO DE REDUÇÃO A VALOR RECUPERÁVEL DE ARMAMENTOS","Registra a variação patrimonial aumentativa com a reversão de redução a valor recuperável de armas que constituem objetos de defesa ou preparativos de guerra.","C",null,null,"S",7]
["4","6","5","5","1","01","10","4.6.5.5.1.01.10","REVERSÃO DE REDUÇÃO A VALOR RECUPERÁVEL DE SEMOVENTES","Registra a variação patrimonial aumentativa com a reversão de redução a valor recuperável de animais destinados a produção, reprodução, engorda e aos serviços utilitários em geral.","C",null,null,"S",7]
["4","6","5","5","1","01","99","4.6.5.5.1.01.99","REVERSÃO DE REDUÇÃO A VALOR RECUPERÁVEL DE DEMAIS BENS MÓVEIS","Registra a variação patrimonial aumentativa com a reversão de redução a valor recuperável de demais bens móveis não classificados em grupos específicos.","C"," ",null,"S",7]
["4","6","5","5","1","02","00","4.6.5.5.1.02.00","REVERSÃO DE REDUÇÃO A VALOR RECUPERÁVEL DE BENS IMÓVEIS","Compreende a variação patrimonial aumentativa com a reversão de redução nos benefícios econômicos futuros ou no potencial de serviços de bens imóveis, que reflete um declínio na sua utilidade além do reconhecimento sistemático por meio da depreciação.","C",null,null,"N",6]
["4","6","5","5","1","02","01","4.6.5.5.1.02.01","REVERSÃO DE REDUÇÃO A VALOR RECUPERÁVEL DE BENS DE USO ESPECIAL","Registra a variação patrimonial aumentativa com a reversão de redução a valor recuperável de bens como edifícios ou terrenos destinados a serviço ou estabelecimento da administração estadual ou municipal, inclusive os de suas autarquias e fundações públicas.","C",null,null,"S",7]
["4","6","5","5","1","02","02","4.6.5.5.1.02.02","REVERSÃO DE REDUÇÃO A VALOR RECUPERÁVEL DE BENS DOMINICAIS","Registra a variação patrimonial aumentativa com a reversão de redução a valor recuperável de bens que constituem o patrimônio das pessoas jurídicas de direito público, como objeto de direito pessoal, ou real, de cada uma dessas entidades. Compreende ainda, não dispondo a lei em contrário, os bens pertencentes as pessoas jurídicas de direito público a que se tenha dado estrutura de direito privado.","C",null,null,"S",7]
["4","6","5","5","1","02","03","4.6.5.5.1.02.03","REVERSÃO DE REDUÇÃO A VALOR RECUPERÁVEL DE BENS DE USO COMUM DO POVO","Registra a variação patrimonial aumentativa com a reversão de redução a valor recuperável de bens de uso comum do povo construídos ou adquiridos por pessoas jurídicas de direito público.","C",null,null,"S",7]
["4","6","5","5","1","02","04","4.6.5.5.1.02.04","REVERSÃO DE REDUÇÃO A VALOR RECUPERÁVEL DE BENS IMÓVEIS EM ANDAMENTO","Registra a variação patrimonial aumentativa com a reversão de redução a valor recuperável de valores de bens imóveis em andamento.","C",null,null,"S",7]
["4","6","5","5","1","02","05","4.6.5.5.1.02.05","REVERSÃO DE REDUÇÃO A VALOR RECUPERÁVEL DE INSTALAÇÕES","Registra a variação patrimonial aumentativa com a reversão de redução a valor recuperável de equipamentos, materiais e custo de implantação de instalações que, não obstante integradas aos edifícios, devem ser segregadas das obras civis, como, por exemplo, as instalações elétricas, hidráulicas, sanitárias, de vapor, de ar comprimido, frigoríficas, contra incêndio, de comunicações, de climatização, para combustíveis, gases, de antipoluição, para cozinha, dentre outros. E também aplicável a construção de trechos ferroviários.","C",null,null,"S",7]
["4","6","5","5","1","02","06","4.6.5.5.1.02.06","REVERSÃO DE REDUÇÃO A VALOR RECUPERÁVEL DE BENFEITORIAS EM PROPRIEDADE DE TERCEIROS","Registra a variação patrimonial aumentativa com a reversão de redução a valor recuperável de construções em terrenos arrendados de terceiros e instalações e outras benfeitorias em prédios alugados. São considerados somente os gastos com construção e instalação que se incorporam ao imóvel e revertem ao proprietário do imóvel ao final da locação.","C",null,null,"S",7]
["4","6","5","5","1","02","99","4.6.5.5.1.02.99","REVERSÃO DE REDUÇÃO A VALOR RECUPERÁVEL DE DEMAIS BENS IMÓVEIS","Registra a variação patrimonial aumentativa com a reversão de redução a valor recuperável de os demais bens imóveis não classificados anteriormente nesse plano de contas.","C",null,null,"S",7]
["4","6","5","6","0","00","00","4.6.5.6.0.00.00","REVERSÃO DE REDUÇÃO A VALOR RECUPERÁVEL DE INTANGÍVEIS","Compreende a variação patrimonial aumentativa com a reversão de redução a valor recuperável de um ativo intangível.","C",null,null,"N",4]
["4","6","5","6","1","00","00","4.6.5.6.1.00.00","REVERSÃO DE REDUÇÃO A VALOR RECUPERÁVEL DE INTANGÍVEIS - CONSOLIDAÇÃO","Compreende a variação patrimonial aumentativa com a reversão de redução a valor recuperável de um ativo intangível. Compreende os saldos que não serão excluídos nos demonstrativos consolidados do orçamento fiscal e da seguridade social (OFSS).","C",null,null,"N",5]
["4","6","5","6","1","01","00","4.6.5.6.1.01.00","REVERSÃO DE REDUÇÃO A VALOR RECUPERÁVEL DE SOFTWARES","Registra a variação patrimonial aumentativa com a reversão de redução a valor recuperável de serviços de softwares.","C",null,null,"S",6]
["4","6","5","6","1","02","00","4.6.5.6.1.02.00","REVERSÃO DE REDUÇÃO A VALOR RECUPERÁVEL DE MARCAS, DIREITOS E PATENTES ","Registra a variação patrimonial aumentativa com a reversão de redução a valor recuperável de serviços de marcas, direitos e patentes.","C",null,null,"S",6]
["4","6","5","6","1","03","00","4.6.5.6.1.03.00","REVERSÃO DE REDUÇÃO A VALOR RECUPERÁVEL DE DIREITO DE USO DE IMÓVEIS","Registra a variação patrimonial aumentativa com a reversão de redução a valor recuperável de direito de uso de imóveis.","C",null,null,"S",6]